[Event "Turkish Super League 2019"]
[Site "Konya"]
[Date "2019.07.21"]
[Round "6"]
[White "Gholami, Aryan"]
[Black "Rozum, Ivan"]
[Result "1-0"]
[ECO "A30"]
[WhiteElo "2532"]
[BlackElo "2583"]
[Annotator "ChessBase"]
[PlyCount "131"]
[EventDate "2019.07.17"]
[EventType "team-tourn"]
[EventCountry "TUR"]
[SourceTitle "playchess.com"]
[Source "ChessBase"]
[SourceQuality "1"]
[TimeControl "40/5400+30:1800+30"]

1. Nf3 Nf6 2. g3 b6 3. Bg2 Bb7 4. O-O e6 5. c4 c5 6. Nc3 Be7 7. Re1 Ne4 8. Qc2 Nxc3 9. dxc3 d6 10. Bf4 Qc7 11. Rad1 h6 12. Qd3 e5 13. Nxe5 Bxg2 14. Ng6 fxg6 15. Qxg6+ Kf8 16. Kxg2 Nd7 17. Bxd6 Bxd6 18. Rxd6 Nf6 19. Red1 Qe7 20. Qf5 Re8 21. Rd7 Qxe2 22. R1d6 Qe4+ 23. Qxe4 Nxe4 24. Rc6 Ra8 25. a4 Nf6 26. Rb7 Ne8 27. a5 bxa5 28. Rxc5 a4 29. Ra5 h5 30. Raxa7 Rc8 31. Rxa4 Rh6 32. b3 Rd6 33. Ra5 h4 34. Rh5 Kg8 35. Rxh4 Rd3 36. b4 Rxc3 37. c5 Rc7 38. Rb8 Kf7 39. Rf4+ Nf6 40. g4 Ke6 41. Rb6+ Ke5 42. Rf5+ Kd4 43. Rd6+ Kc4 44. Rf4+ Kb3 45. g5 {[%emt 1:37:30]} Ng8 {[%emt 1:59:30]} 46. Rg6 {[%emt 0:16:30]} Ne7 {[%emt 0:02:30]} 47. Rd6 {[%emt 0:00:30]} Nc8 {[%emt 0:04:07]} 48. Rdd4 {[%emt 0:01:30]} Na7 {[%emt 0:00:23]} 49. Rde4 {[%emt 0:01:30]} Rb7 {[%emt 0:00:59]} 50. g6 {[%emt 0:02:30]} Nc6 {[%emt 0:02:09]} 51. Rf7 {[%emt 0:00:00]} Rb8 {[%emt 0:01:56]} 52. Rxg7 {[%emt 0:01:00]} Nxb4 {[%emt 0:00:06]} 53. Rf7 {[%emt 0:02:30]} Rxc5 {[%emt 0:00:40]} 54. Rg4 {[%emt 0:00:30]} Nd3 {[%emt 0:04:10]} 55. g7 {[%emt 0:00:30]} Rcc8 {[%emt 0:00:06]} 56. Rf5 {[%emt 0:01:30]} Kc3 {[%emt 0:01:04]} 57. h4 {[%emt 0:00:00]} Ne1+ {[%emt 0:01:36]} 58. Kh2 {[%emt 0:02:00]} Kd2 {[%emt 0:01:31]} 59. h5 {[%emt 0:00:30]} Ke2 {[%emt 0:00:24]} 60. Re4+ {[%emt 0:01:54]} Kf1 {[%emt 0:00:15]} 61. Rg4 {[%emt 0:01:25]} Rg8 {[%emt 0:02:21]} 62. h6 {[%emt 0:02:47]} Rb6 {[%emt 0:00:09]} 63. Rh5 {[%emt 0:00:30]} Kxf2 {[%emt 0:01:56]} 64. h7 {[%emt 0:00:42]} Nf3+ {[%emt 0:00:52]} 65. Kh3 {[%emt 0:00:06]} Rb1 {[%emt 0:01:47]} 66. Rg2+ {[%emt 0:00:11]} 1-0

[Event "Turkish Super League 2019"]
[Site "Konya"]
[Date "2019.07.21"]
[Round "6"]
[White "Dimitrov, Radoslav"]
[Black "Asadli, Vugar"]
[Result "1/2-1/2"]
[ECO "C48"]
[WhiteElo "2530"]
[BlackElo "2502"]
[Annotator "ChessBase"]
[PlyCount "89"]
[EventDate "2019.07.17"]
[EventType "team-tourn"]
[EventCountry "TUR"]
[SourceTitle "playchess.com"]
[Source "ChessBase"]
[SourceQuality "1"]
[TimeControl "40/5400+30:1800+30"]

1. e4 {[%emt 0:00:30]} e5 {[%emt 0:00:30]} 2. Nc3 {[%emt 0:00:00]} Nf6 {[%emt 0:00:30]} 3. Nf3 {[%emt 0:00:00]} Nc6 {[%emt 0:00:30]} 4. Bb5 {[%emt 0:00:30]} Nd4 {[%emt 0:00:30]} 5. Bc4 {[%emt 0:00:30]} Bc5 {[%emt 0:00:30]} 6. d3 {[%emt 0:00:00]} d6 {[%emt 0:00:30]} 7. Nxd4 {[%emt 0:00:00]} Bxd4 {[%emt 0:00:30]} 8. O-O {[%emt 0:01:30]} O-O {[%emt 0:02:30]} 9. Qf3 {[%emt 0:03:30]} h6 {[%emt 0:02:30]} 10. h3 {[%emt 0:01:30]} c6 {[%emt 0:04:30]} 11. Ne2 {[%emt 0:00:30]} Bc5 {[%emt 0:04:30]} 12. Ng3 {[%emt 0:00:30]} d5 {[%emt 0:01:30]} 13. Bb3 {[%emt 0:00:30]} Re8 {[%emt 0:01:30]} 14. Be3 {[%emt 0:04:30]} Bf8 {[%emt 0:01:30]} 15. Rad1 {[%emt 0:01:30]} Be6 {[%emt 0:02:30]} 16. Nf5 {[%emt 0:07:30]} a5 {[%emt 0:03:30]} 17. a4 {[%emt 0:00:00]} Ra6 {[%emt 0:05:30]} 18. Bd2 {[%emt 0:04:00]} Kh7 {[%emt 0:03:30]} 19. Ng3 {[%emt 0:14:30]} g6 {[%emt 0:03:30]} 20. Bc3 {[%emt 0:04:30]} d4 {[%emt 0:03:30]} 21. Bxe6 {[%emt 0:02:30]} Rxe6 {[%emt 0:00:30]} 22. Bd2 {[%emt 0:00:00]} Bg7 {[%emt 0:00:30]} 23. Ne2 {[%emt 0:01:00]} b5 {[%emt 0:01:30]} 24. Ra1 {[%emt 0:01:30]} Qb6 {[%emt 0:00:30]} 25. b3 {[%emt 0:09:30]} Qc5 {[%emt 0:04:30]} 26. Rfc1 {[%emt 0:00:30]} b4 {[%emt 0:01:30]} 27. g4 {[%emt 0:00:30]} Ra7 {[%emt 0:00:30]} 28. Qg3 {[%emt 0:00:30]} Rae7 {[%emt 0:02:30]} 29. Kg2 {[%emt 0:00:30]} Nd7 {[%emt 0:00:30]} 30. Qh4 {[%emt 0:01:30]} f6 {[%emt 0:00:30]} 31. Ra2 {[%emt 0:02:30]} Rf7 {[%emt 0:00:30]} 32. Ng3 {[%emt 0:05:30]} Nb6 {[%emt 0:04:30]} 33. Rg1 {[%emt 0:00:00]} Nc8 {[%emt 0:00:30]} 34. Kf1 {[%emt 0:01:00]} Nd6 {[%emt 0:05:30]} 35. Nf5 {[%emt 0:04:30]} gxf5 {[%emt 0:04:30]} 36. gxf5 {[%emt 0:00:30]} Ree7 {[%emt 0:00:00]} 37. Bxh6 {[%emt 0:01:30]} Kg8 {[%emt 0:00:00]} 38. Ke2 {[%emt 0:00:30]} Ne8 {[%emt 0:01:30]} 39. Rg6 {[%emt 0:04:30]} Kf8 {[%emt 0:02:30]} 40. Qg4 {[%emt 0:00:00]} Rc7 {[%emt 0:00:00]} 41. Bd2 {[%emt 0:05:00]} Ke7 {[%emt 0:02:00]} 42. h4 {[%emt 0:00:00]} Kd8 {[%emt 0:01:30]} 43. h5 {[%emt 0:00:00]} Bf8 {[%emt 0:00:00]} 44. h6 {[%emt 0:01:30]} Rh7 {[%emt 0:00:00]} 45. Qh4 {[%emt 0:18:30]} 1/2-1/2

[Event "Turkish Super League 2019"]
[Site "Konya"]
[Date "2019.07.21"]
[Round "6"]
[White "Iljiushenok, Ilia"]
[Black "Durarbayli, Vasif"]
[Result "0-1"]
[ECO "C45"]
[WhiteElo "2520"]
[BlackElo "2637"]
[Annotator "ChessBase"]
[PlyCount "126"]
[EventDate "2019.07.17"]
[EventType "team-tourn"]
[EventCountry "TUR"]
[SourceTitle "playchess.com"]
[Source "ChessBase"]
[SourceQuality "1"]
[TimeControl "40/5400+30:1800+30"]

1. e4 e5 2. Nf3 Nc6 3. d4 exd4 4. Nxd4 Bc5 5. Be3 Qf6 6. c3 Qg6 7. Qf3 Ne5 8. Qf5 d6 9. Qxg6 hxg6 10. Nc2 Bxe3 11. Nxe3 g5 12. f3 Nf6 13. Na3 Be6 14. Nb5 Kd7 15. h3 a6 16. Nd4 c5 17. Nxe6 fxe6 18. O-O-O b5 19. Be2 Ke7 20. Rhe1 Rab8 21. Kc2 Rb6 22. a4 Rhb8 23. axb5 axb5 24. b4 Nc6 25. Kb3 Nh5 26. Bf1 Ne5 27. Ra1 R8b7 28. Red1 Ng3 29. Ra5 Nxf1 30. Rxf1 cxb4 31. cxb4 Nc4 32. Nxc4 bxc4+ 33. Kc3 Rxb4 34. Rxg5 Rb3+ 35. Kc2 Kf6 36. h4 Ra7 37. Rc1 Ra2+ 38. Kd1 Rd3+ 39. Ke1 c3 40. f4 Re3+ 41. Kf1 Rxe4 42. Rxc3 Rxf4+ 43. Rf3 Raa4 44. Rgg3 g6 45. Ke2 Rae4+ 46. Kd3 d5 47. Rh3 Ke7 48. h5 gxh5 49. Rxh5 Rg4 50. g3 Ra4 51. Ke2 Ra2+ 52. Kf1 Rb4 53. Rf2 Rbb2 54. Rxb2 Rxb2 55. Rh6 Kd6 56. g4 Ke5 57. g5 Rb8 58. Rg6 Rf8+ 59. Ke2 Kf5 60. Rg7 Rh8 61. Ke3 Rh4 62. Kf3 Rh3+ 63. Ke2 Rg3 0-1

[Event "Turkish Super League 2019"]
[Site "Konya"]
[Date "2019.07.21"]
[Round "6"]
[White "Sanal, Vahap"]
[Black "Dastan, Muhammed Batuhan"]
[Result "1/2-1/2"]
[ECO "C63"]
[WhiteElo "2520"]
[BlackElo "2565"]
[Annotator "ChessBase"]
[PlyCount "62"]
[EventDate "2019.07.17"]
[EventType "team-tourn"]
[EventCountry "TUR"]
[SourceTitle "playchess.com"]
[Source "ChessBase"]
[SourceQuality "1"]
[TimeControl "40/5400+30:1800+30"]

1. e4 {[%emt 0:00:30]} e5 {[%emt 0:00:30]} 2. Nf3 {[%emt 0:00:30]} Nc6 {[%emt 0:00:00]} 3. Bb5 {[%emt 0:02:30]} f5 {[%emt 0:01:00]} 4. d3 {[%emt 0:00:30]} fxe4 {[%emt 0:00:30]} 5. dxe4 {[%emt 0:00:30]} Nf6 {[%emt 0:00:00]} 6. Nc3 {[%emt 0:01:30]} Bb4 {[%emt 0:05:00]} 7. Qd3 {[%emt 0:02:30]} Bxc3+ {[%emt 0:18:30]} 8. Qxc3 {[%emt 0:00:30]} Qe7 {[%emt 0:05:30]} 9. O-O {[%emt 0:17:30]} Nxe4 {[%emt 0:28:30]} 10. Qe3 {[%emt 0:01:30]} Nf6 {[%emt 0:00:30]} 11. Bxc6 {[%emt 0:01:30]} bxc6 {[%emt 0:00:30]} 12. Nxe5 {[%emt 0:01:30]} O-O {[%emt 0:02:30]} 13. Bd2 {[%emt 0:10:30]} c5 {[%emt 0:03:30]} 14. Rfe1 {[%emt 0:09:30]} d6 {[%emt 0:03:30]} 15. Ng4 {[%emt 0:11:30]} Qxe3 {[%emt 0:00:30]} 16. Nxf6+ {[%emt 0:00:30]} Rxf6 {[%emt 0:01:30]} 17. Rxe3 {[%emt 0:00:30]} Bf5 {[%emt 0:01:30]} 18. c4 {[%emt 0:05:30]} Re6 {[%emt 0:03:30]} 19. Rae1 {[%emt 0:03:30]} Rae8 {[%emt 0:01:30]} 20. Ba5 {[%emt 0:03:30]} Rxe3 {[%emt 0:00:30]} 21. Rxe3 {[%emt 0:00:30]} Rxe3 {[%emt 0:00:00]} 22. fxe3 {[%emt 0:00:00]} Be6 {[%emt 0:02:50]} 23. Bxc7 {[%emt 0:02:00]} Bxc4 {[%emt 0:02:14]} 24. a3 {[%emt 0:00:30]} d5 {[%emt 0:01:03]} 25. Bd6 {[%emt 0:00:30]} a5 {[%emt 0:02:17]} 26. a4 {[%emt 0:01:30]} d4 {[%emt 0:00:13]} 27. Kf2 {[%emt 0:00:30]} dxe3+ {[%emt 0:00:40]} 28. Kxe3 {[%emt 0:00:30]} Bb3 {[%emt 0:00:00]} 29. Bxc5 {[%emt 0:00:30]} Bxa4 {[%emt 0:00:29]} 30. Bb6 {[%emt 0:00:00]} Bc6 {[%emt 0:00:04]} 31. Bxa5 {[%emt 0:00:00]} Bxg2 {[%emt 0:00:00]} 1/2-1/2

[Event "Turkish Super League 2019"]
[Site "Konya"]
[Date "2019.07.21"]
[Round "6"]
[White "Quparadze, Giga"]
[Black "Sarana, Alexey"]
[Result "0-1"]
[ECO "B80"]
[WhiteElo "2499"]
[BlackElo "2640"]
[Annotator "ChessBase"]
[PlyCount "80"]
[EventDate "2019.07.17"]
[EventType "team-tourn"]
[EventCountry "TUR"]
[SourceTitle "playchess.com"]
[Source "ChessBase"]
[SourceQuality "1"]
[TimeControl "40/5400+30:1800+30"]

1. e4 {[%emt 0:00:30]} c5 {[%emt 0:00:30]} 2. Nf3 {[%emt 0:00:30]} d6 {[%emt 0:00:00]} 3. d4 {[%emt 0:00:00]} cxd4 {[%emt 0:00:00]} 4. Nxd4 {[%emt 0:00:00]} Nf6 {[%emt 0:00:00]} 5. Nc3 {[%emt 0:00:00]} a6 {[%emt 0:00:00]} 6. g3 {[%emt 0:00:00]} e6 {[%emt 0:00:30]} 7. Bg2 {[%emt 0:00:30]} Be7 {[%emt 0:00:00]} 8. O-O {[%emt 0:00:00]} O-O {[%emt 0:00:00]} 9. a4 {[%emt 0:00:00]} Nc6 {[%emt 0:00:00]} 10. Be3 {[%emt 0:00:00]} Ne5 {[%emt 0:03:00]} 11. Qe2 {[%emt 0:01:00]} Qc7 {[%emt 0:00:00]} 12. f4 {[%emt 0:00:30]} Nc4 {[%emt 0:00:00]} 13. Bc1 {[%emt 0:00:00]} Qc5 {[%emt 0:03:30]} 14. Rd1 {[%emt 0:12:00]} e5 {[%emt 0:02:30]} 15. b4 {[%emt 0:04:30]} Qxb4 {[%emt 0:02:30]} 16. Nd5 {[%emt 0:00:30]} Nxd5 {[%emt 0:00:30]} 17. exd5 {[%emt 0:00:00]} exd4 {[%emt 0:06:30]} 18. Qxe7 {[%emt 0:00:00]} Qc3 {[%emt 0:00:30]} 19. Ra2 {[%emt 0:00:30]} Ne3 {[%emt 0:03:30]} 20. Bd2 {[%emt 0:03:30]} Qc4 {[%emt 0:03:30]} 21. Bxe3 {[%emt 0:03:30]} dxe3 {[%emt 0:00:30]} 22. Raa1 {[%emt 0:03:30]} Bg4 {[%emt 0:01:30]} 23. Re1 {[%emt 0:00:30]} Rfe8 {[%emt 0:00:00]} 24. Qxd6 {[%emt 0:02:30]} Qxc2 {[%emt 0:01:00]} 25. Kh1 {[%emt 0:00:00]} Rac8 {[%emt 0:00:30]} 26. f5 {[%emt 0:03:00]} Qd2 {[%emt 0:07:30]} 27. Qd7 {[%emt 0:01:30]} g6 {[%emt 0:00:00]} 28. Qxb7 {[%emt 0:00:30]} Rc2 {[%emt 0:02:00]} 29. d6 {[%emt 0:00:30]} Bh3 {[%emt 0:00:30]} 30. Rg1 {[%emt 0:00:30]} Bxg2+ {[%emt 0:00:30]} 31. Qxg2 {[%emt 0:00:30]} e2 {[%emt 0:00:30]} 32. Rge1 {[%emt 0:00:30]} Qxd6 {[%emt 0:00:00]} 33. fxg6 {[%emt 0:00:30]} hxg6 {[%emt 0:00:00]} 34. Qf3 {[%emt 0:00:30]} Re6 {[%emt 0:00:30]} 35. Rab1 {[%emt 0:00:30]} Qd4 {[%emt 0:01:30]} 36. a5 {[%emt 0:02:30]} Rf6 {[%emt 0:00:30]} 37. Qg2 {[%emt 0:01:30]} Qd2 {[%emt 0:00:30]} 38. Qa8+ {[%emt 0:01:30]} Kg7 {[%emt 0:00:30]} 39. Kg2 {[%emt 0:00:30]} Qe3 {[%emt 0:01:30]} 40. Kh1 {[%emt 0:00:00]} Rf1+ {[%emt 0:00:00]} 0-1

[Event "Turkish Super League 2019"]
[Site "Konya"]
[Date "2019.07.21"]
[Round "6"]
[White "Atalik, Ekaterina"]
[Black "Ozturk, Kubra"]
[Result "1/2-1/2"]
[ECO "A13"]
[WhiteElo "2459"]
[BlackElo "2317"]
[Annotator "ChessBase"]
[PlyCount "115"]
[EventDate "2019.07.17"]
[EventType "team-tourn"]
[EventCountry "TUR"]
[SourceTitle "playchess.com"]
[Source "ChessBase"]
[SourceQuality "1"]
[TimeControl "40/5400+30:1800+30"]

1. Nf3 d5 2. e3 Nf6 3. c4 e6 4. b3 c5 5. Bb2 Nc6 6. cxd5 exd5 7. Bb5 Bd6 8. O-O O-O 9. d4 cxd4 10. Nxd4 Bg4 11. Be2 Bxe2 12. Qxe2 Re8 13. Nd2 Rc8 14. N2f3 Ne4 15. Rfd1 Bf8 16. Nf5 Qa5 17. N3d4 g6 18. Nxc6 bxc6 19. Ng3 Nxg3 20. hxg3 Rcd8 21. Qf3 Bg7 22. Bxg7 Kxg7 23. Rd4 Qc3 24. Rad1 Qc2 25. R1d2 Qb1+ 26. Qd1 Qxd1+ 27. Rxd1 Kf6 28. Rc1 Rd6 29. Ra4 Re7 30. g4 h6 31. Kf1 Rc7 32. Rc5 Ke7 33. Ke2 Kd8 34. Kd3 Kc8 35. Rf4 Kb7 36. b4 a6 37. Rf3 Re6 38. Rf4 Rce7 39. a3 Kb6 40. Rf3 Kb7 41. Rc1 Kb6 42. Rf4 Kb5 {[%emt 2:00:00]} 43. Rc5+ {[%emt 1:36:30]} Kb6 {[%emt 0:00:30]} 44. Rc2 {[%emt 0:06:30]} Kb5 {[%emt 0:01:30]} 45. Rc1 {[%emt 0:02:30]} Kb6 {[%emt 0:06:27]} 46. Rh1 {[%emt 0:05:30]} g5 {[%emt 0:02:27]} 47. Rd4 {[%emt 0:00:30]} Kb5 {[%emt 0:02:20]} 48. Rc1 {[%emt 0:00:30]} Kb6 {[%emt 0:01:22]} 49. Rc5 {[%emt 0:03:30]} Kb7 {[%emt 0:03:28]} 50. a4 {[%emt 0:08:30]} Kb6 {[%emt 0:00:32]} 51. a5+ {[%emt 0:00:30]} Kb7 {[%emt 0:00:10]} 52. Rc1 {[%emt 0:01:30]} Re5 {[%emt 0:01:21]} 53. Rh1 {[%emt 0:00:30]} R5e6 {[%emt 0:01:35]} 54. Rh3 {[%emt 0:02:08]} Kc7 {[%emt 0:00:26]} 55. Rf3 {[%emt 0:01:46]} Kd6 {[%emt 0:01:02]} 56. Rf5 {[%emt 0:01:04]} Kd7 {[%emt 0:01:48]} 57. Rf3 {[%emt 0:05:46]} Kd6 {[%emt 0:00:17]} 58. Rf5 {[%emt 0:00:23]} 1/2-1/2

[Event "Turkish Super League 2019"]
[Site "Konya"]
[Date "2019.07.21"]
[Round "6"]
[White "Haznedaroglu, Kivanc"]
[Black "Yaran, Siar"]
[Result "1-0"]
[ECO "D36"]
[WhiteElo "2448"]
[BlackElo "2197"]
[Annotator "NA"]
[PlyCount "65"]
[EventDate "2019.07.17"]
[EventType "team-tourn"]
[EventCountry "TUR"]
[SourceTitle "playchess.com"]
[Source "ChessBase"]
[SourceQuality "1"]
[TimeControl "40/5400+30:1800+30"]

1. d4 {[%emt 0:00:30]} d5 {[%emt 0:02:30]} 2. c4 {[%emt 0:01:30]} e6 {[%emt 0:02:30]} 3. Nc3 {[%emt 0:00:30]} Nf6 {[%emt 0:00:30]} 4. cxd5 {[%emt 0:00:30]} exd5 {[%emt 0:00:30]} 5. Bg5 {[%emt 0:00:30]} Be7 {[%emt 0:01:30]} 6. e3 {[%emt 0:00:30]} O-O {[%emt 0:01:30]} 7. Bd3 {[%emt 0:00:00]} c6 {[%emt 0:03:30]} 8. Qc2 {[%emt 0:01:00]} Nbd7 {[%emt 0:02:30]} 9. Nge2 {[%emt 0:00:30]} h6 {[%emt 0:00:30]} 10. Bh4 {[%emt 0:00:30]} Re8 {[%emt 0:02:30]} 11. f3 {[%emt 0:02:30]} b6 {[%emt 0:01:30]} 12. Bf2 {[%emt 0:01:30]} c5 {[%emt 0:03:30]} 13. O-O {[%emt 0:00:30]} Bb7 {[%emt 0:00:30]} 14. Rad1 {[%emt 0:01:30]} a6 {[%emt 0:02:30]} 15. Bf5 {[%emt 0:09:30]} Rc8 {[%emt 0:25:30]} 16. Nf4 {[%emt 0:08:30]} b5 {[%emt 0:06:30]} 17. Qb1 {[%emt 0:38:30]} cxd4 {[%emt 0:12:30]} 18. Rxd4 {[%emt 0:00:30]} Bc5 {[%emt 0:00:30]} 19. Rd3 {[%emt 0:00:30]} Ne5 {[%emt 0:01:30]} 20. Rdd1 {[%emt 0:02:30]} Rc7 {[%emt 0:03:30]} 21. e4 {[%emt 0:05:30]} g6 {[%emt 0:03:30]} 22. Bh3 {[%emt 0:01:30]} d4 {[%emt 0:01:58]} 23. Nd3 {[%emt 0:05:20]} Nxd3 {[%emt 0:11:34]} 24. Qxd3 {[%emt 0:00:59]} Nh5 {[%emt 0:00:39]} 25. Ne2 {[%emt 0:01:40]} Qg5 {[%emt 0:03:24]} 26. Rc1 {[%emt 0:01:29]} Rd8 {[%emt 0:01:10]} 27. Bg4 {[%emt 0:00:43]} Nf4 {[%emt 0:01:35]} 28. Nxf4 {[%emt 0:02:10]} Qxf4 {[%emt 0:00:30]} 29. Bg3 {[%emt 0:00:30]} Qe3+ {[%emt 0:00:30]} 30. Qxe3 {[%emt 0:00:30]} dxe3 {[%emt 0:00:30]} 31. Bxc7 {[%emt 0:00:30]} e2+ {[%emt 0:00:30]} 32. Rxc5 {[%emt 0:00:30]} Rd1 {[%emt 0:00:30]} 33. Re1 {[%emt 0:00:30]} 1-0

[Event "Turkish Super League 2019"]
[Site "Konya"]
[Date "2019.07.21"]
[Round "6"]
[White "Daulyte-Cornette, Deimante"]
[Black "Osmak, Iulija"]
[Result "1/2-1/2"]
[ECO "C01"]
[WhiteElo "2444"]
[BlackElo "2395"]
[Annotator "NA"]
[PlyCount "113"]
[EventDate "2019.07.17"]
[EventType "team-tourn"]
[EventCountry "TUR"]
[SourceTitle "playchess.com"]
[Source "ChessBase"]
[SourceQuality "1"]
[TimeControl "40/5400+30:1800+30"]

1. e4 e6 2. d4 d5 3. Nc3 Bb4 4. exd5 exd5 5. Bd3 Ne7 6. Nf3 Bg4 7. O-O h6 8. h3 Bh5 9. Re1 O-O 10. a3 Bxc3 11. bxc3 Nbc6 12. Bf4 Ng6 13. Bh2 Nh4 14. Be2 Nxf3+ 15. Bxf3 Bxf3 16. Qxf3 Na5 17. Re5 c6 18. Rae1 Qd7 19. Qe2 Qd6 20. Re3 Qg6 21. Be5 f6 22. Bd6 Rf7 23. h4 Rd7 24. h5 Qf7 25. Bf4 Nc4 26. Rg3 Kf8 27. Qd3 Re8 28. Rxe8+ Kxe8 29. Qf5 Kd8 30. a4 Qe8 31. Kh2 b6 32. Rg6 Qe4 33. Qg4 Qe7 34. Bg3 Kc8 35. Qf4 Kb7 36. Qb8+ Ka6 37. Qc8+ Rb7 38. Bf4 Qd7 39. Qf8 Qf5 40. Kg3 {[%emt 1:20:00]} Qd7 {[%emt 1:17:00]} 41. Rg4 {[%emt 0:38:30]} Qe7 {[%emt 0:34:30]} 42. Qc8 {[%emt 0:01:30]} Nb2 {[%emt 0:02:30]} 43. Qxc6 {[%emt 0:04:52]} Qd7 {[%emt 0:00:00]} 44. Qd6 {[%emt 0:00:08]} Nxa4 {[%emt 0:09:45]} 45. Qa3 {[%emt 0:02:17]} Qc6 {[%emt 0:00:34]} 46. Kh4 {[%emt 0:05:28]} Qe8 {[%emt 0:05:56]} 47. Bd6 {[%emt 0:05:29]} Rf7 {[%emt 0:00:51]} 48. Kh3 {[%emt 0:02:32]} Kb7 {[%emt 0:02:18]} 49. Kh2 {[%emt 0:01:08]} Rd7 {[%emt 0:02:06]} 50. Qxa4 {[%emt 0:00:52]} Qxh5+ {[%emt 0:00:09]} 51. Kg3 {[%emt 0:00:10]} Qf7 {[%emt 0:01:13]} 52. Ba3 {[%emt 0:01:17]} g5 {[%emt 0:00:24]} 53. Kh2 {[%emt 0:01:36]} Qh5+ {[%emt 0:01:40]} 54. Kg3 {[%emt 0:00:03]} Qf7 {[%emt 0:03:00]} 55. Kh2 {[%emt 0:00:18]} Qh5+ {[%emt 0:00:51]} 56. Kg3 {[%emt 0:00:04]} Qf7 {[%emt 0:03:39]} 57. Kh2 {[%emt 0:00:08]} 1/2-1/2

[Event "Turkish Super League 2019"]
[Site "Konya"]
[Date "2019.07.21"]
[Round "6"]
[White "Soysal, Serkan"]
[Black "Kerigan, Demre"]
[Result "0-1"]
[ECO "E71"]
[WhiteElo "2431"]
[BlackElo "2398"]
[Annotator "NA"]
[PlyCount "98"]
[EventDate "2019.07.17"]
[EventType "team-tourn"]
[EventCountry "TUR"]
[SourceTitle "playchess.com"]
[Source "ChessBase"]
[SourceQuality "1"]
[TimeControl "40/5400+30:1800+30"]

1. d4 g6 2. e4 d6 3. c4 Bg7 4. Nc3 Nf6 5. h3 O-O 6. Be3 c5 7. dxc5 dxc5 8. Qxd8 Rxd8 9. e5 Nfd7 10. f4 b6 11. Be2 Bb7 12. Nf3 Nc6 13. Kf2 Nf8 14. Rad1 Ne6 15. Nd5 Kf8 16. Bd3 Rd7 17. h4 Rad8 18. h5 Nc7 19. Nxc7 Rxd3 20. Rxd3 Rxd3 21. h6 Bh8 22. Nd5 Ba6 23. b3 f6 24. f5 gxf5 25. e6 Ne5 26. Bf4 Ng4+ 27. Ke1 Ne5 28. Rh3 Rxd5 29. Bxe5 Rd8 30. Bc7 Rc8 31. Bh2 Rc6 32. Rh5 Bc8 33. Rxf5 Bxe6 34. Rf4 Bf7 35. Nh4 Re6+ 36. Kd2 Re5 37. g4 Rg5 {[%emt 1:47:08]} 38. Re4 {[%emt 1:48:25]} e5 {[%emt 0:00:30]} 39. Nf3 {[%emt 0:00:30]} Rg6 {[%emt 0:00:30]} 40. g5 {[%emt 0:00:00]} f5 {[%emt 0:00:00]} 41. Rxe5 {[%emt 0:06:35]} Bxe5 {[%emt 0:04:22]} 42. Bxe5 {[%emt 0:00:30]} Re6 {[%emt 0:00:30]} 43. Bf6 {[%emt 0:02:30]} Re4 {[%emt 0:02:30]} 44. Ne5 {[%emt 0:00:30]} Be8 {[%emt 0:04:30]} 45. a3 {[%emt 0:03:30]} Kg8 {[%emt 0:02:30]} 46. Kd3 {[%emt 0:04:31]} Bh5 {[%emt 0:03:02]} 47. Nc6 {[%emt 0:04:16]} Bg6 {[%emt 0:01:07]} 48. Ne5 {[%emt 0:02:49]} f4 {[%emt 0:01:33]} 49. Kd2 {[%emt 0:00:53]} Bh5 {[%emt 0:01:00]} 0-1

[Event "Turkish Super League 2019"]
[Site "Konya"]
[Date "2019.07.21"]
[Round "6"]
[White "Ozen, Deniz"]
[Black "Firat, Burak"]
[Result "1/2-1/2"]
[ECO "B51"]
[WhiteElo "2430"]
[BlackElo "2463"]
[Annotator "ChessBase"]
[PlyCount "45"]
[EventDate "2019.07.17"]
[EventType "team-tourn"]
[EventCountry "TUR"]
[SourceTitle "playchess.com"]
[Source "ChessBase"]
[SourceQuality "1"]
[TimeControl "40/5400+30:1800+30"]

1. e4 {[%emt 0:00:30]} c5 {[%emt 0:00:30]} 2. Nf3 {[%emt 0:00:00]} d6 {[%emt 0:00:30]} 3. Bb5+ {[%emt 0:00:00]} Nd7 {[%emt 0:00:00]} 4. Ba4 {[%emt 0:00:30]} Ngf6 {[%emt 0:05:00]} 5. O-O {[%emt 0:00:00]} e6 {[%emt 0:06:30]} 6. Re1 {[%emt 0:01:00]} a6 {[%emt 0:01:30]} 7. c4 {[%emt 0:00:00]} Be7 {[%emt 0:00:30]} 8. Nc3 {[%emt 0:01:00]} O-O {[%emt 0:00:30]} 9. d3 {[%emt 0:00:00]} Qc7 {[%emt 0:07:30]} 10. h3 {[%emt 0:04:00]} Rd8 {[%emt 0:08:30]} 11. a3 {[%emt 0:06:30]} Nf8 {[%emt 0:05:30]} 12. Be3 {[%emt 0:14:30]} Ng6 {[%emt 0:02:30]} 13. Rc1 {[%emt 0:02:30]} Bd7 {[%emt 0:03:30]} 14. Bxd7 {[%emt 0:01:30]} Nxd7 {[%emt 0:01:30]} 15. b4 {[%emt 0:06:30]} Bf6 {[%emt 0:04:30]} 16. Qb3 {[%emt 0:05:30]} Nge5 {[%emt 0:04:30]} 17. Nxe5 {[%emt 0:00:30]} Nxe5 {[%emt 0:00:30]} 18. Ne2 {[%emt 0:01:30]} b6 {[%emt 0:03:30]} 19. Red1 {[%emt 0:08:30]} Rac8 {[%emt 0:05:30]} 20. Rb1 {[%emt 0:04:30]} Rb8 {[%emt 0:03:30]} 21. Rbc1 {[%emt 0:06:30]} Rbc8 {[%emt 0:00:30]} 22. Rb1 {[%emt 0:00:30]} Rb8 {[%emt 0:00:30]} 23. Rbc1 {[%emt 0:02:30]} 1/2-1/2

[Event "Turkish Super League 2019"]
[Site "Konya"]
[Date "2019.07.21"]
[Round "6"]
[White "Szczepkowska, Karina"]
[Black "Dordzhieva, Dinara"]
[Result "1/2-1/2"]
[ECO "E94"]
[WhiteElo "2425"]
[BlackElo "2306"]
[Annotator "NA"]
[PlyCount "71"]
[EventDate "2019.07.17"]
[EventType "team-tourn"]
[EventCountry "TUR"]
[SourceTitle "playchess.com"]
[Source "ChessBase"]
[SourceQuality "1"]
[TimeControl "40/5400+30:1800+30"]

1. d4 {[%emt 0:00:30]} d6 {[%emt 0:00:30]} 2. Nf3 {[%emt 0:05:30]} g6 {[%emt 0:00:30]} 3. c4 {[%emt 0:01:30]} Bg7 {[%emt 0:00:30]} 4. Nc3 {[%emt 0:00:30]} Nf6 {[%emt 0:00:00]} 5. e4 {[%emt 0:00:30]} O-O {[%emt 0:00:00]} 6. Be2 {[%emt 0:00:30]} e5 {[%emt 0:00:30]} 7. O-O {[%emt 0:00:00]} Nbd7 {[%emt 0:03:30]} 8. Be3 {[%emt 0:03:00]} a5 {[%emt 0:04:30]} 9. dxe5 {[%emt 0:08:30]} dxe5 {[%emt 0:00:30]} 10. Qc2 {[%emt 0:08:30]} c6 {[%emt 0:02:30]} 11. Nd2 {[%emt 0:02:30]} Qe7 {[%emt 0:02:30]} 12. Na4 {[%emt 0:00:30]} Ne8 {[%emt 0:07:30]} 13. Bg4 {[%emt 0:07:30]} Nd6 {[%emt 0:11:30]} 14. Be2 {[%emt 0:08:30]} Ne8 {[%emt 0:08:30]} 15. Rfd1 {[%emt 0:06:30]} Nc7 {[%emt 0:00:30]} 16. c5 {[%emt 0:01:30]} Ne6 {[%emt 0:05:30]} 17. Nb3 {[%emt 0:02:30]} f5 {[%emt 0:06:30]} 18. exf5 {[%emt 0:06:30]} gxf5 {[%emt 0:02:30]} 19. f3 {[%emt 0:01:30]} Kh8 {[%emt 0:02:30]} 20. Bf1 {[%emt 0:02:30]} Ng5 {[%emt 0:10:30]} 21. Nd2 {[%emt 0:02:30]} e4 {[%emt 0:07:30]} 22. f4 {[%emt 0:03:30]} Ne6 {[%emt 0:00:30]} 23. Nc4 {[%emt 0:00:30]} Nf6 {[%emt 0:01:30]} 24. Nab6 {[%emt 0:05:30]} Rb8 {[%emt 0:00:30]} 25. Nd6 {[%emt 0:00:30]} Ng4 {[%emt 0:02:44]} 26. Qe2 {[%emt 0:01:35]} Nxe3 {[%emt 0:04:13]} 27. Qxe3 {[%emt 0:00:25]} Bd7 {[%emt 0:01:06]} 28. Rab1 {[%emt 0:04:02]} Be8 {[%emt 0:00:44]} 29. Kh1 {[%emt 0:02:02]} Bh5 {[%emt 0:01:42]} 30. Rd2 {[%emt 0:00:13]} Rbd8 {[%emt 0:01:16]} 31. Nbc4 {[%emt 0:02:00]} a4 {[%emt 0:00:30]} 32. g3 {[%emt 0:02:02]} Nc7 {[%emt 0:05:11]} 33. Nb6 {[%emt 0:00:15]} Ne8 {[%emt 0:03:43]} 34. Nbc4 {[%emt 0:03:07]} Nc7 {[%emt 0:00:13]} 35. Nb6 {[%emt 0:01:23]} Ne8 {[%emt 0:00:20]} 36. Nbc4 {[%emt 0:00:00]} 1/2-1/2